bitfinex/quotes_SOLUSD_20250201
["timestamp","ask_amount","ask_price","bid_price","bid_amount"]
[1738452739453,3.42,214.55,214.45,1.0]
[1738452740143,3.3734,214.55,214.45,1.0]
[1738452740879,20.0,214.53,214.42,1.0]
[1738452741170,20.0,214.53,214.4,2.0]
[1738452742063,20.0,214.53,214.4,1.0]
[1738452742251,20.0,214.53,214.42,1.0]
[1738452742560,20.0,214.49,214.4,1.0]
[1738452743344,3.3734,214.55,214.43,1.0]
[1738452743545,2.7559372,214.56,214.45,1.0]
[1738452743746,20.0,214.53,214.45,1.0]
[1738452745746,21.867386,214.52,214.45,1.0]
[1738452747371,1.867386,214.52,214.45,1.0]
[1738452750681,15.27923453,214.52,214.4,1.0]
[1738452751043,20.0,214.48,214.39,1.0]
[1738452751540,20.0,214.44,214.39,1.0]
[1738452751740,20.0,214.4,214.38,0.063]
[1738452752146,21.17002,214.4,214.38,0.063]
[1738452752353,20.0,214.4,214.38,0.063]
[1738452753669,20.0,214.44,214.38,0.063]
[1738452753863,3.38,214.43,214.38,0.063]
[1738452754047,1.867386,214.52,214.42,1.0]
[1738452754048,1.13897624,214.51,214.42,1.0]
[1738452754253,3.38,214.51,214.42,1.0]
[1738452754463,16.79184853,214.51,214.42,1.0]
[1738452754955,16.79184853,214.51,214.38,2.063]
[1738452755169,20.0,214.48,214.38,2.063]
[1738452755377,16.79184853,214.51,214.38,2.063]
[1738452755873,20.0,214.47,214.38,1.063]
[1738452756168,20.0,214.43,214.38,0.063]
[1738452758370,20.0,214.49,214.38,0.063]
[1738452758961,20.0,214.49,214.4,1.0]
[1738452759158,3.38,214.51,214.4,1.0]
[1738452759355,20.0,214.48,214.4,1.0]
[1738452759759,5.247386,214.52,214.44,1.0]
[1738452760283,1.6501,214.61,214.46,1.0]
[1738452760480,3.38,214.57,214.46,1.0]
[1738452760784,1.867005,214.55,214.46,1.0]
[1738452760955,20.0,214.54,214.46,1.0]
[1738452761277,1.867005,214.55,214.46,1.0]
[1738452761454,3.05639101,214.55,214.46,1.0]
[1738452761658,1.867005,214.55,214.46,1.0]
[1738452762085,21.867005,214.55,214.46,1.0]
[1738452762799,20.0,214.55,214.48,1.0]
[1738452762987,3.38,214.59,214.48,1.0]
[1738452763275,1.866835,214.57,214.48,1.0]
[1738452763482,20.0,214.56,214.49,1.0]
[1738452764085,21.866835,214.57,214.47,1.0]
[1738452764375,21.866835,214.57,214.45,1.0]
[1738452765375,20.03,214.53,214.44,7.8488]
[1738452768573,0.03,214.53,214.44,8.8488]
[1738452768883,0.03,214.53,214.44,7.8488]
[1738452769185,0.03,214.53,214.46,1.0]
[1738452769484,0.03,214.53,214.46,2.0]
[1738452769655,0.03,214.53,214.48,1.0]
[1738452771685,0.03,214.53,214.45,1.0]
[1738452772484,0.03,214.53,214.44,8.8488]
[1738452773087,13.44184853,214.53,214.44,7.8488]
[1738452773990,13.44184853,214.53,214.39,1.063]
[1738452774166,19.56494853,214.53,214.39,1.063]
[1738452774865,19.56494853,214.53,214.39,0.063]
[1738452775076,19.56494853,214.53,214.39,1.063]
[1738452775787,20.0,214.5,214.39,1.063]
[1738452775984,20.0,214.46,214.39,1.063]
[1738452776291,20.0,214.46,214.39,0.063]
[1738452779270,20.0,214.42,214.39,0.063]
[1738452780279,13.41184853,214.41,214.39,0.063]
[1738452780584,13.41184853,214.42,214.39,0.063]
[1738452781078,20.0,214.4,214.39,0.063]
[1738452781272,33.41184853,214.4,214.39,0.063]
[1738452781595,20.0,214.36,214.18,1.0]
[1738452781789,20.0,214.32,214.17,0.063]
[1738452781992,3.36,214.31,214.17,0.063]
[1738452782174,4.54627828,214.31,214.17,0.063]
[1738452782572,20.0,214.27,214.17,0.063]
[1738452782978,20.0,214.26,214.17,0.063]
[1738452783881,13.41184853,214.24,214.17,0.063]
[1738452784285,20.0,214.18,214.17,0.063]
[1738452784483,23.36,214.18,214.17,0.063]
[1738452784986,20.0,214.17,214.04,1.5619]
[1738452785500,20.0,214.13,213.98,1.5619]
[1738452785674,20.0,214.12,213.98,1.5619]
[1738452786187,24.3807549,214.15,213.98,1.5619]
[1738452786496,33.41184853,214.11,213.93,13.41184853]
[1738452786684,33.41184853,214.11,213.95,1.0]
[1738452786882,18.2576549,214.15,214.03,1.0]
[1738452787073,3.36,214.11,214.04,1.0]
[1738452787473,3.36,214.11,214.04,1.063]
[1738452788494,20.0,214.12,214.04,1.063]
[1738452788697,20.0,214.12,214.06,1.0]
[1738452789384,20.0,214.12,214.04,0.063]
[1738452790903,13.41184853,214.11,214.04,0.063]
[1738452791105,20.0,214.08,214.04,0.063]
[1738452791603,33.41184853,214.07,214.04,0.063]
[1738452792079,111.43193945,214.14,214.04,0.063]
[1738452792278,81.43193945,214.13,214.04,0.063]
[1738452792483,33.41184853,214.09,214.04,0.063]
[1738452793194,39.83634853,214.09,214.04,0.063]
[1738452793395,20.0,214.05,214.04,0.063]
[1738452794403,33.41184853,214.05,214.04,0.063]
[1738452795494,36.79184853,214.05,214.04,0.063]
[1738452796303,37.94656447,214.05,214.04,0.063]
[1738452798089,24.53471594,214.05,214.04,0.063]
[1738452798290,4.51471594,214.05,214.04,0.063]
[1738452799002,3.36,214.07,214.04,0.063]
[1738452799304,3.36,214.07,214.04,1.063]
[1738452799496,1.14247082,214.1,214.04,0.063]
[1738452799702,23.36,214.12,214.04,0.063]
[1738452799893,20.0,214.12,214.04,0.063]
[1738452800093,3.36,214.11,214.04,0.063]
[1738452801206,3.36,214.11,214.05,1.0]
[1738452801412,19.43802095,214.15,214.05,2.0]
[1738452801607,18.2576549,214.15,214.09,1.0]
[1738452802513,18.2576549,214.15,214.11,1.0]
[1738452802822,18.2576549,214.15,214.13,1.0]
[1738452803022,20.0,214.12,214.1,1.0]
[1738452803523,3.36,214.21,214.13,1.0]
[1738452803892,1.14479595,214.24,214.18,1.0]
[1738452804095,1.18627828,214.31,214.18,1.0]
[1738452804096,3.36,214.25,214.18,1.0]
[1738452804321,3.36,214.25,214.2,1.0]
[1738452804830,20.0,214.24,214.2,1.0]
[1738452805125,18.24832061,214.27,214.23,1.0]
[1738452805325,18.24832061,214.27,214.25,1.0]
[1738452805514,3.36,214.32,214.26,1.0]
[1738452805998,3.36,214.32,214.29,1.0]
[1738452806399,3.36,214.32,214.31,1.0]
[1738452806694,3.36,214.32,214.29,1.0]
[1738452806893,20.0,214.34,214.27,14.41184853]
[1738452807203,0.03,214.36,214.27,14.41184853]
[1738452807619,0.03,214.36,214.28,1.0]
[1738452807919,3.41,214.36,214.28,1.0]
[1738452808419,20.0,214.34,214.28,1.0]
[1738452809643,20.0,214.34,214.25,6.3353]
[1738452809800,20.0,214.34,214.31,1.0]
[1738452810503,20.0,214.34,214.26,1.0]
[1738452811295,20.0,214.34,214.25,7.3353]
[1738452811801,20.0,214.34,214.25,1.0]
[1738452813427,20.0,214.34,214.27,1.0]
[1738452813600,20.0,214.34,214.25,1.0]
[1738452814625,20.0,214.34,214.23,1.5935]
[1738452815930,20.0,214.34,214.2,2.0]
[1738452817403,20.0,214.34,214.22,1.0]
[1738452817612,20.0,214.34,214.21,13.41184853]
[1738452818317,20.0,214.34,214.2,2.0]
[1738452819145,20.0,214.34,214.21,13.41184853]
[1738452819345,20.0,214.34,214.23,1.0]
[1738452819537,20.0,214.34,214.24,1.0]
[1738452820040,3.36,214.35,214.27,2.0]
[1738452820457,3.36,214.35,214.3,1.0]
[1738452820944,3.41,214.36,214.3,1.0]
[1738452821310,3.41,214.36,214.31,1.0]
[1738452823138,20.03,214.34,214.31,1.0]
[1738452823335,20.03,214.34,214.33,2.0]
[1738452823336,0.03,214.34,214.33,2.0]
[1738452823538,0.03,214.34,214.33,15.41184853]
[1738452823716,0.03,214.34,214.29,1.0]
[1738452823921,0.03,214.34,214.24,2.6603]
[1738452824124,0.03,214.34,214.26,1.0]
[1738452824323,0.03,214.34,214.24,2.6603]
[1738452824522,20.0,214.31,214.19,8.6438]
[1738452824748,13.44184853,214.34,214.19,6.6438]
[1738452824749,23.36,214.3,214.19,6.6438]
[1738452825319,20.0,214.26,214.16,0.063]
[1738452826618,20.0,214.22,214.16,0.063]
[1738452828443,20.0,214.18,214.16,0.063]
[1738452828747,3.36,214.17,214.16,0.063]
[1738452828940,23.36,214.17,214.16,0.063]
[1738452829240,36.77184853,214.17,214.16,0.063]
[1738452830742,13.41184853,214.16,214.04,0.063]
[1738452830956,20.0,214.09,213.98,1.0]
[1738452831127,20.0,214.09,213.96,1.0]
[1738452831329,20.0,214.05,213.94,1.063]
[1738452831527,3.36,214.04,213.94,1.063]
[1738452831730,3.36,214.04,213.94,2.063]
[1738452831931,3.36,214.04,214.0,2.0]
[1738452832233,3.36,214.04,214.0,1.0]
[1738452832433,23.36,214.04,214.0,1.0]
[1738452833138,3.36,214.12,214.04,1.0]
[1738452833339,3.36,214.12,214.07,1.0]
[1738452833927,3.36,214.12,214.11,1.0]
[1738452834249,7.51558556,214.2,214.11,1.0]
[1738452834250,1.17995998,214.18,214.11,1.0]
[1738452834433,3.38,214.19,214.11,1.0]
[1738452834767,3.38,214.19,214.14,1.0]
[1738452834942,1.17666461,214.19,214.14,1.0]
[1738452835263,3.38,214.2,214.14,1.0]
[1738452835465,4.57232854,214.2,214.14,1.0]
[1738452835847,4.57232854,214.2,214.11,1.063]
[1738452839253,4.57232854,214.2,214.11,0.063]
[1738452839456,20.0,214.16,214.11,0.063]
[1738452840949,2.6616,214.15,214.11,0.063]
[1738452845466,2.6616,214.15,214.11,1.063]
[1738452845661,1.1730885,214.16,214.11,1.063]
[1738452845962,3.36,214.19,214.15,1.0]
[1738452846260,23.36,214.19,214.15,1.0]
[1738452846667,81.46193945,214.22,214.15,1.0]
[1738452846845,82.6293459,214.22,214.17,1.0]
[1738452847047,1.19740645,214.22,214.17,1.0]
[1738452847258,2.33779989,214.22,214.17,1.0]
[1738452847561,0.03,214.22,214.17,1.0]
[1738452847945,0.03,214.22,214.19,1.0]
[1738452848151,0.03,214.22,214.21,2.0]
[1738452848553,0.03,214.22,214.21,15.41184853]
[1738452850841,0.03,214.22,214.21,2.0]
[1738452851268,0.03,214.22,214.21,1.0]
[1738452851763,0.03,214.22,214.19,1.0]
[1738452851949,0.03,214.22,214.18,1.0]
[1738452852155,0.03,214.22,214.21,1.0]
[1738452853378,0.03,214.22,214.17,2.0]
[1738452854483,0.03,214.22,214.15,2.0]
[1738452856682,0.03,214.22,214.15,1.0]
[1738452856870,20.03,214.22,214.12,1.0]
[1738452857080,20.03,214.22,214.11,1.063]
[1738452857393,20.03,214.22,214.11,0.063]
[1738452857552,20.03,214.22,214.12,1.0]
[1738452857972,1.870557,214.21,214.12,1.0]
[1738452858888,1.870557,214.21,214.15,2.0]
[1738452859194,3.39,214.22,214.18,1.0]
[1738452859393,0.03,214.22,214.18,1.0]
[1738452859688,0.03,214.22,214.21,1.0]
[1738452861498,0.03,214.22,214.21,2.0]
[1738452863388,0.03,214.22,214.21,15.41184853]
[1738452863763,0.03,214.22,214.21,2.0]
[1738452863981,0.03,214.22,214.19,2.0]
[1738452864206,0.03,214.22,214.17,1.0]
[1738452864376,0.03,214.22,214.16,1.0]
[1738452865113,0.03,214.22,214.17,1.0]
[1738452865403,0.03,214.22,214.21,1.0]
[1738452866995,0.03,214.22,214.21,14.41184853]
[1738452867382,0.03,214.22,214.21,21.49681932]
[1738452870379,0.03,214.22,214.21,20.79664853]
[1738452870579,0.03,214.22,214.21,21.49681773]
[1738452871194,0.03,214.22,214.21,20.79664853]
[1738452872984,0.03,214.22,214.21,1.0]
[1738452873173,0.03,214.22,214.2,1.0]
[1738452874397,0.03,214.22,214.18,1.0]
[1738452874575,0.03,214.22,214.16,1.0]
[1738452874987,0.03,214.22,214.18,1.0]
[1738452875196,0.03,214.22,214.16,2.0]
[1738452875599,0.03,214.22,214.19,1.0]
[1738452876301,0.03,214.22,214.17,1.0]
[1738452876907,0.03,214.22,214.21,1.0]
[1738452877082,0.03,214.22,214.21,15.41184853]
[1738452877999,0.03,214.22,214.21,2.0]
[1738452879195,0.03,214.22,214.21,22.43403722]
[1738452880212,35.94302292,214.3,214.29,2.0]
[1738452880382,35.94302292,214.3,214.29,15.41184853]
[1738452880803,34.27642292,214.3,214.29,45.82095677]
[1738452881010,34.27642292,214.3,214.29,21.73394853]
[1738452881620,0.03,214.34,214.3,13.41184853]
[1738452881815,0.03,214.34,214.33,1.0]
[1738452881995,0.03,214.34,214.33,2.0]
[1738452882323,0.03,214.34,214.33,15.41184853]
[1738452882690,65.8207832,214.38,214.37,2.0]
[1738452883010,65.8207832,214.38,214.37,15.41184853]
[1738452883407,65.8207832,214.38,214.37,2.0]
[1738452883797,86.26325504,214.41,214.37,1.0]
[1738452883798,20.0,214.41,214.37,1.0]
[1738452885125,0.03,214.44,214.39,1.0]
[1738452885324,0.03,214.44,214.4,1.0]
[1738452887322,0.03,214.44,214.39,1.0]
[1738452887616,0.03,214.44,214.38,1.0]
[1738452888297,0.03,214.44,214.41,1.0]
[1738452888523,0.03,214.44,214.4,1.0]
[1738452888812,0.03,214.44,214.38,1.0]
[1738452890101,0.03,214.44,214.41,1.0]
[1738452890496,0.03,214.44,214.43,1.0]
[1738452892715,0.03,214.44,214.4,1.0]
[1738452894011,20.0,214.42,214.35,2.0]
[1738452894214,20.0,214.4,214.35,1.0]
[1738452895005,20.0,214.4,214.38,1.0]
[1738452895997,20.0,214.4,214.36,1.0]
[1738452896409,20.0,214.4,214.34,1.0]
[1738452896719,20.0,214.4,214.32,1.0]
[1738452896720,21.15268306,214.4,214.32,2.0]
[1738452897510,21.15268306,214.4,214.32,1.0]
[1738452900331,20.0,214.36,214.28,1.0]
[1738452900629,23.36,214.36,214.26,1.0]
[1738452900807,23.36,214.36,214.29,1.0]
[1738452901004,23.36,214.36,214.32,1.0]
[1738452901203,3.36,214.36,214.31,1.0]
[1738452901403,23.36,214.36,214.28,1.0]
[1738452901604,20.0,214.32,214.26,1.0]
[1738452903308,3.36,214.36,214.29,1.0]
[1738452903506,20.0,214.38,214.29,1.0]
[1738452903703,3.36,214.37,214.29,1.0]
[1738452903909,3.36,214.37,214.32,2.0]
[1738452904625,3.36,214.37,214.34,1.0]
[1738452905206,1.15268306,214.4,214.34,2.0]
[1738452905403,1.5945,214.41,214.36,2.0]
[1738452905613,13.31436935,214.42,214.36,2.0]
[1738452906212,20.0,214.39,214.34,0.85992569]
[1738452906429,20.0,214.39,214.32,1.85992569]
[1738452906607,20.0,214.39,214.34,0.85992569]
[1738452906811,20.0,214.39,214.37,0.85992569]
[1738452907007,4.52663529,214.42,214.37,0.85992569]
[1738452907319,1.16663529,214.42,214.37,0.85992569]
[1738452907516,20.0,214.4,214.37,0.85992569]
[1738452908309,1.18053215,214.43,214.41,0.85992569]
[1738452908524,0.03,214.44,214.41,1.85992569]
[1738452909229,0.03,214.44,214.37,0.85992569]
[1738452909434,33.41184853,214.43,214.33,0.85992569]
[1738452909638,20.0,214.38,214.31,0.85992569]
[1738452909847,20.0,214.37,214.31,0.85992569]
[1738452910054,20.0,214.37,214.29,0.85992569]
[1738452910339,20.0,214.33,214.27,0.85992569]
[1738452910641,23.36,214.33,214.27,0.85992569]
[1738452913913,20.0,214.29,214.26,0.063]
[1738452914113,20.0,214.29,214.26,1.063]
[1738452914546,20.0,214.29,214.27,1.0]
[1738452915145,1.17098888,214.33,214.3,0.85992569]
[1738452915310,3.36,214.35,214.3,0.85992569]
[1738452915506,3.36,214.35,214.28,0.85992569]
[1738452915938,3.36,214.35,214.3,0.85992569]
[1738452916115,3.36,214.35,214.28,0.85992569]
[1738452916430,3.36,214.35,214.3,0.85992569]
[1738452916752,82.6067831,214.38,214.3,0.85992569]
[1738452916954,1.17484365,214.38,214.36,1.0]
[1738452917137,13.82980031,214.42,214.37,0.85992569]
[1738452917138,14.97590661,214.42,214.37,0.85992569]
[1738452917345,13.42280661,214.42,214.39,0.85992569]
[1738452917646,13.42280661,214.42,214.41,0.85992569]
[1738452917854,12.27670031,214.42,214.4,1.0]
[1738452918158,5.08809573,214.42,214.3,14.11166886]
[1738452918323,1.15837224,214.43,214.31,13.41184853]
[1738452918324,20.0,214.43,214.31,13.41184853]
[1738452918520,0.03,214.44,214.33,13.41184853]
[1738452918724,0.03,214.44,214.34,0.69968869]
[1738452918947,0.03,214.44,214.35,13.41184853]
[1738452919118,0.03,214.44,214.36,0.69962754]
[1738452919832,20.0,214.43,214.36,0.69962754]
[1738452920338,0.03,214.44,214.36,0.69962754]
[1738452921545,0.03,214.44,214.35,13.41184853]
[1738452922441,0.03,214.44,214.36,0.69966637]
[1738452922738,0.03,214.44,214.35,13.41184853]
[1738452922946,0.03,214.44,214.36,0.69958768]
[1738452924443,0.03,214.44,214.37,15.41184853]
[1738452924743,0.03,214.44,214.41,13.41184853]
[1738452924922,0.03,214.44,214.43,13.41184853]
[1738452926138,0.03,214.53,214.45,1.0]
[1738452926329,0.03,214.53,214.47,6.4739]
[1738452926943,20.0,214.52,214.41,6.4739]
[1738452927644,0.03,214.53,214.41,6.4739]
[1738452927956,0.03,214.44,214.41,6.4739]
[1738452928322,0.03,214.44,214.42,14.11136093]
[1738452928850,0.03,214.44,214.41,6.4739]
[1738452929925,0.03,214.44,214.35,6.4816]
[1738452930148,0.03,214.44,214.36,0.69961083]
[1738452930926,0.03,214.44,214.39,0.046644]
[1738452939058,0.03,214.44,214.39,13.45849253]
[1738452939244,0.03,214.44,214.4,0.69950969]
[1738452939746,0.03,214.44,214.39,0.109644]
[1738452946362,0.03,214.44,214.39,0.80919663]
[1738452949760,0.03,214.44,214.39,0.109644]
[1738452953842,20.03,214.44,214.39,0.109644]
[1738452954166,21.19602823,214.44,214.39,0.109644]
[1738452955065,20.03,214.44,214.39,0.109644]
[1738452959672,0.03,214.44,214.39,0.109644]
[1738452961970,0.03,214.44,214.4,0.69947036]
[1738452962146,0.03,214.44,214.39,0.80908791]
[1738452962351,0.03,214.44,214.39,0.109644]
[1738452962780,0.03,214.44,214.39,0.80920222]
[1738452963368,0.03,214.44,214.39,0.109644]
[1738452964550,0.03,214.44,214.4,0.69956984]
[1738452964770,0.03,214.44,214.41,15.41184853]
[1738452964955,0.03,214.44,214.43,15.41184853]
[1738452965151,0.03,214.44,214.43,29.79131657]
[1738452965359,0.03,214.53,214.48,13.41184853]
[1738452965664,0.03,214.53,214.5,13.41184853]
[1738452965979,0.03,214.53,214.52,14.41184853]
[1738452966157,0.03,214.53,214.52,13.41184853]
[1738452966355,0.03,214.53,214.52,14.41184853]
[1738452966755,0.03,214.53,214.52,36.62971657]
[1738452966974,0.03,214.55,214.54,35.41184853]
[1738452967295,0.03,214.55,214.54,50.49008869]
[1738452967764,0.03,214.55,214.54,15.11062065]
[1738452967963,0.03,214.55,214.54,14.11062065]
[1738452970892,0.03,214.55,214.54,0.69877212]
[1738452971064,0.03,214.55,214.53,0.69906409]
[1738452971265,0.03,214.55,214.49,0.69907051]
[1738452971886,0.03,214.55,214.5,13.41184853]
[1738452972075,0.03,214.55,214.51,0.69907206]
[1738452972374,0.03,214.55,214.52,13.41184853]
[1738452972573,0.03,214.55,214.51,1.69907206]
[1738452972574,0.03,214.55,214.54,13.41184853]
[1738452973094,0.03,214.55,214.49,0.69904463]
[1738452973392,0.03,214.55,214.51,2.0]
[1738452973556,0.03,214.55,214.52,14.11081822]
[1738452973956,0.03,214.55,214.54,13.41184853]
[1738452974166,0.03,214.55,214.54,14.11076645]
[1738452974370,0.03,214.55,214.49,1.69904021]
[1738452974571,0.03,214.55,214.52,15.37946804]
[1738452974766,0.03,214.55,214.54,13.41184853]
[1738452975066,0.03,214.55,214.53,0.69889819]
[1738452975268,0.03,214.55,214.48,0.69910718]
[1738452976081,0.03,214.55,214.43,0.69921948]
[1738452976781,0.03,214.55,214.46,27.79131657]
[1738452976982,0.03,214.55,214.48,13.41184853]
[1738452977189,0.03,214.55,214.5,13.41184853]
[1738452977481,0.03,214.55,214.51,0.6990108]
[1738452978183,0.03,214.55,214.52,13.41184853]
[1738452978391,0.03,214.55,214.54,13.41184853]
[1738452979469,0.03,214.55,214.54,0.69890699]
[1738452981077,0.03,214.55,214.51,14.41184853]
[1738452981277,0.03,214.55,214.52,0.6989742]
[1738452981987,0.03,214.55,214.53,13.41184853]
[1738452982177,0.03,214.55,214.54,0.69891436]
[1738452982578,0.03,214.55,214.54,14.11076289]
[1738452983993,0.03,214.55,214.54,15.11076289]
[1738452984185,0.03,214.55,214.54,14.11076289]
[1738452989793,0.03,214.55,214.54,18.77186289]
[1738452990472,0.03,214.55,214.54,18.89735289]
[1738452990672,0.03,214.55,214.54,19.02284289]
[1738452991872,0.03,214.55,214.54,33.40231093]
[1738452992568,0.03,214.55,214.54,28.49023093]
[1738452992791,0.03,214.55,214.54,33.15133093]
[1738452993075,0.03,214.55,214.54,33.65329093]
[1738452994190,0.03,214.58,214.57,2.12549]
[1738452994496,0.03,214.58,214.57,30.6153766]
[1738452995378,0.03,214.58,214.57,35.2757766]
[1738452996897,0.03,214.6,214.59,2.50196]
[1738452997087,0.03,214.6,214.59,30.99173306]
[1738452997289,0.03,214.6,214.59,34.35173306]
[1738452998201,0.03,214.6,214.59,39.01173306]
[1738452998915,20.0,214.75,214.65,28.79131657]
[1738452999083,20.0,214.75,214.65,29.48975377]
[1738452999598,6.5196,214.78,214.65,29.48975377]
[1738452999599,1.6353,214.8,214.65,30.61524377]
[1738452999902,1.6353,214.8,214.65,30.48975377]
[1738453000094,20.0,214.78,214.65,30.48975377]
[1738453000484,20.0,214.78,214.65,35.39943377]
[1738453001189,20.0,214.78,214.65,29.48975377]
[1738453001398,20.0,214.78,214.62,0.6985134]
[1738453001815,21.16219893,214.78,214.62,0.6985134]
[1738453001999,21.16219893,214.78,214.63,13.41184853]
[1738453002196,1.865236,214.75,214.65,13.41184853]
[1738453002591,1.865236,214.75,214.62,13.41184853]
[1738453002820,1.865236,214.75,214.63,0.6986183]
[1738453003487,1.865236,214.75,214.63,1.6986183]
[1738453003889,21.16219893,214.78,214.63,1.6986183]
[1738453004908,21.16219893,214.78,214.65,13.41184853]
[1738453005210,1.6353,214.8,214.65,29.48977728]
[1738453007011,20.0,214.78,214.65,29.48977728]
[1738453007390,20.0,214.78,214.71,1.0]
[1738453007621,20.0,214.78,214.73,13.41184853]
[1738453007922,20.0,214.78,214.75,13.41184853]
[1738453008125,1.6353,214.8,214.76,0.69825138]
[1738453008309,0.03,214.8,214.77,13.41184853]
[1738453008488,0.03,214.8,214.79,13.41184853]
[1738453009111,0.03,214.8,214.79,14.41184853]
[1738453009325,0.03,214.8,214.79,28.79131657]
[1738453009804,0.03,214.8,214.79,13.41184853]
[1738453010005,0.03,214.8,214.79,14.41184853]
[1738453010393,0.03,214.8,214.79,28.79131657]
[1738453011008,0.03,214.88,214.85,1.0]
[1738453011202,0.03,214.88,214.87,1.0]
[1738453011391,0.03,214.88,214.87,14.41184853]
[1738453012099,0.03,214.88,214.87,28.79131657]
[1738453012605,0.03,214.88,214.87,13.41184853]
[1738453013004,0.03,214.88,214.87,14.10966632]
[1738453013603,0.03,214.88,214.87,15.10966632]
[1738453014006,0.03,214.88,214.87,29.48913436]
[1738453014400,1.504,214.96,214.87,0.69781779]
[1738453014616,1.504,214.96,214.88,0.69787828]
[1738453014918,1.504,214.96,214.85,28.79131657]
[1738453015128,1.504,214.96,214.87,13.41184853]
[1738453015301,1.504,214.96,214.89,13.41184853]
[1738453015505,1.504,214.96,214.91,13.41184853]
[1738453015697,20.0,214.97,214.93,13.41184853]
[1738453015902,6.5745,215.0,214.95,13.41184853]
[1738453016097,6.5745,215.0,214.97,13.41184853]
[1738453016307,1.504,215.02,214.99,13.41184853]
[1738453016511,1.504,215.02,215.0,0.69751547]
[1738453016713,6.5745,215.05,215.01,13.41184853]
[1738453017022,6.5745,215.05,215.02,0.69745499]
[1738453017197,1.504,215.07,215.03,13.41184853]
[1738453017452,1.504,215.07,215.04,0.69737844]
[1738453017609,1.504,215.07,215.0,13.41184853]
[1738453017917,1.504,215.07,215.01,0.69739702]
[1738453018128,1.504,215.07,215.02,13.41184853]
[1738453018315,1.504,215.07,215.03,0.69742646]
[1738453018822,2.004,215.07,214.94,0.6975466]
[1738453019122,2.004,215.07,214.92,0.69758553]
[1738453019621,2.004,215.07,214.93,13.41184853]
[1738453019823,2.004,215.07,214.94,0.69763027]
[1738453020921,2.034,215.07,214.94,0.69763027]
[1738453021233,2.034,215.07,214.95,14.41184853]
[1738453021440,1.534,215.07,214.99,27.79131657]
[1738453021740,1.534,215.07,215.02,27.79131657]
[1738453021897,1.534,215.07,215.04,13.41184853]
[1738453022232,1.534,215.07,215.06,13.41184853]
[1738453022715,1.534,215.07,215.03,13.41184853]
[1738453022920,1.534,215.07,215.02,0.69731056]
[1738453023238,2.034,215.07,214.95,0.69731056]
[1738453023548,1.534,215.07,214.96,13.41184853]
[1738453023701,1.534,215.07,214.97,0.69752403]
[1738453023903,0.03,215.07,215.02,22.87316509]
[1738453024122,0.03,215.07,215.04,13.41184853]
[1738453024445,0.03,215.07,215.01,0.69739456]
[1738453024628,0.03,215.07,214.95,13.41184853]